[Event "January 2 Late 2024"]
[Site "https://www.chess.com"]
[Date "2024.01.02"]
[Round "5"]
[White "RaugintaBulba"]
[Black "Arias Igual, Alejandro"]
[Result "1-0"]
[Board "128"]
[TimeControl "180+1"]
[BlackFideId "2254905"]
[WhiteElo "2534"]
[BlackElo "2365"]
[BlackTeam "ESP"]
[WhiteClock "0:01:32"]
[BlackClock "0:00:46"]

1. d4 {[%clk 0:03:00]}  d5 {[%clk 0:02:58]} 2. c4 {[%clk 0:02:59]}  e6 {[%clk 0:02:58]} 3. Nf3 {[%clk 0:02:58]}  c5 {[%clk 0:02:58]} 4. cxd5 {[%clk 0:02:54]}  exd5 {[%clk 0:02:59]} 5. g3 {[%clk 0:02:54]}  Nc6 {[%clk 0:02:59]} 6. Bg2 {[%clk 0:02:52]}  Nf6 {[%clk 0:02:59]} 7. Nc3 {[%clk 0:02:51]}  Be7 {[%clk 0:02:58]} 8. O-O {[%clk 0:02:49]}  O-O {[%clk 0:02:58]} 9. Bg5 {[%clk 0:02:50]}  c4 {[%clk 0:02:58]} 10. Ne5 {[%clk 0:02:50]}  Be6 {[%clk 0:02:58]} 11. Nxc6 {[%clk 0:02:50]}  bxc6 {[%clk 0:02:58]} 12. b3 {[%clk 0:02:50]}  h6 {[%clk 0:02:58]} 13. Bxf6 {[%clk 0:02:50]}  Bxf6 {[%clk 0:02:59]} 14. bxc4 {[%clk 0:02:49]}  dxc4 {[%clk 0:03:00]} 15. e3 {[%clk 0:02:49]}  Qa5 {[%clk 0:02:58]} 16. Ne4 {[%clk 0:02:33]}  Be7 {[%clk 0:02:57]} 17. Qc2 {[%clk 0:02:29]}  Rac8 {[%clk 0:02:44]} 18. Rfd1 {[%clk 0:02:25]}  Bd5 {[%clk 0:02:33]} 19. Bf1 {[%clk 0:01:57]}  f5 {[%clk 0:01:40]} 20. Nd2 {[%clk 0:01:34]}  c3 {[%clk 0:01:30]} 21. Nb3 {[%clk 0:01:33]}  Qa6 {[%clk 0:00:46]} 22. Bxa6 {[%clk 0:01:32]} 1-0

[Event "January 2 Late 2024"]
[Site "https://www.chess.com"]
[Date "2024.01.02"]
[Round "5"]
[White "CRObliterator"]
[Black "Pinheiro, Iung Alicio de O."]
[Result "0-1"]
[Board "129"]
[TimeControl "180+1"]
[BlackFideId "2104350"]
[WhiteElo "2360"]
[BlackElo "2533"]
[BlackTeam "BRA"]
[WhiteClock "0:00:00"]
[BlackClock "0:00:14"]

1. e4 {[%clk 0:03:00]}  c5 {[%clk 0:02:58]} 2. c3 {[%clk 0:02:59]}  Qa5 {[%clk 0:02:55]} 3. Na3 {[%clk 0:02:56]}  d6 {[%clk 0:02:45]} 4. Nc4 {[%clk 0:02:56]}  Qc7 {[%clk 0:02:46]} 5. d4 {[%clk 0:02:55]}  Nf6 {[%clk 0:02:34]} 6. Bd3 {[%clk 0:02:48]}  Nbd7 {[%clk 0:02:26]} 7. Qe2 {[%clk 0:02:32]}  e5 {[%clk 0:02:20]} 8. dxe5 {[%clk 0:02:29]}  dxe5 {[%clk 0:02:18]} 9. Bg5 {[%clk 0:02:27]}  g6 {[%clk 0:02:00]} 10. Nf3 {[%clk 0:02:23]}  Bg7 {[%clk 0:02:00]} 11. O-O {[%clk 0:02:17]}  O-O {[%clk 0:02:00]} 12. a4 {[%clk 0:02:13]}  b6 {[%clk 0:01:58]} 13. Na3 {[%clk 0:02:06]}  a6 {[%clk 0:01:55]} 14. Rfd1 {[%clk 0:02:02]}  Bb7 {[%clk 0:01:55]} 15. Nc2 {[%clk 0:01:45]}  Rfe8 {[%clk 0:01:45]} 16. h3 {[%clk 0:01:44]}  Nh5 {[%clk 0:01:45]} 17. Bc4 {[%clk 0:01:37]}  Nf4 {[%clk 0:01:43]} 18. Bxf4 {[%clk 0:01:10]}  exf4 {[%clk 0:01:41]} 19. Rxd7 {[%clk 0:01:09]}  Qxd7 {[%clk 0:01:37]} 20. Ng5 {[%clk 0:01:08]}  Re7 {[%clk 0:01:31]} 21. Rd1 {[%clk 0:00:23]}  Qc7 {[%clk 0:01:28]} 22. Qg4 {[%clk 0:00:13]}  Rd8 {[%clk 0:01:14]} 23. Rxd8+ {[%clk 0:00:12]}  Qxd8 {[%clk 0:01:13]} 24. Bxf7+ {[%clk 0:00:12]}  Rxf7 {[%clk 0:01:09]} 25. Nxf7 {[%clk 0:00:12]}  Kxf7 {[%clk 0:01:08]} 26. Qxf4+ {[%clk 0:00:13]}  Kg8 {[%clk 0:01:08]} 27. Ne3 {[%clk 0:00:13]}  Qe8 {[%clk 0:01:00]} 28. Nc4 {[%clk 0:00:12]}  Qxe4 {[%clk 0:00:56]} 29. Qb8+ {[%clk 0:00:12]}  Bf8 {[%clk 0:00:56]} 30. f3 {[%clk 0:00:10]}  Qc6 {[%clk 0:00:36]} 31. Ne5 {[%clk 0:00:08]}  Qd5 {[%clk 0:00:35]} 32. Ng4 {[%clk 0:00:06]}  Qd1+ {[%clk 0:00:31]} 33. Kf2 {[%clk 0:00:06]}  Qd2+ {[%clk 0:00:30]} 34. Kf1 {[%clk 0:00:06]}  Qd3+ {[%clk 0:00:30]} 35. Kf2 {[%clk 0:00:07]}  Qb1 {[%clk 0:00:16]} 36. Qxb7 {[%clk 0:00:05]}  Qxb2+ {[%clk 0:00:16]} 37. Kg3 {[%clk 0:00:05]}  Qxc3 {[%clk 0:00:17]} 38. Qd7 {[%clk 0:00:04]}  Qg7 {[%clk 0:00:16]} 39. Qe6+ {[%clk 0:00:03]}  Kh8 {[%clk 0:00:16]} 40. Ne5 {[%clk 0:00:03]}  Qe7 {[%clk 0:00:13]} 41. Nf7+ {[%clk 0:00:02]}  Kg7 {[%clk 0:00:13]} 42. Qxe7 {[%clk 0:00:02]}  Bxe7 {[%clk 0:00:13]} 43. Ne5 {[%clk 0:00:02]}  Bd6 {[%clk 0:00:14]} 44. Kf4 {[%clk 0:00:00]}  Kf6 {[%clk 0:00:14]} 0-1

[Event "January 2 Late 2024"]
[Site "https://www.chess.com"]
[Date "2024.01.02"]
[Round "5"]
[White "Silva, Kaua Marques"]
[Black "Korol, Dimitry"]
[Result "1-0"]
[Board "130"]
[TimeControl "180+1"]
[WhiteFideId "22701168"]
[BlackFideId "14108003"]
[WhiteElo "2531"]
[BlackElo "2343"]
[WhiteTeam "BRA"]
[BlackTeam "UKR"]
[WhiteClock "0:00:48"]
[BlackClock "0:00:00"]

1. e4 {[%clk 0:03:00]}  c5 {[%clk 0:02:59]} 2. Nf3 {[%clk 0:03:01]}  d6 {[%clk 0:02:59]} 3. c3 {[%clk 0:03:01]}  Nf6 {[%clk 0:02:59]} 4. Be2 {[%clk 0:03:01]}  g6 {[%clk 0:02:59]} 5. O-O {[%clk 0:03:01]}  Bg7 {[%clk 0:02:59]} 6. Bb5+ {[%clk 0:03:02]}  Nbd7 {[%clk 0:02:38]} 7. Re1 {[%clk 0:02:59]}  O-O {[%clk 0:02:37]} 8. d4 {[%clk 0:02:55]}  cxd4 {[%clk 0:02:35]} 9. cxd4 {[%clk 0:02:56]}  Nb6 {[%clk 0:02:33]} 10. h3 {[%clk 0:02:55]}  d5 {[%clk 0:02:12]} 11. e5 {[%clk 0:02:54]}  Ne4 {[%clk 0:02:12]} 12. Nc3 {[%clk 0:02:52]}  Nxc3 {[%clk 0:02:01]} 13. bxc3 {[%clk 0:02:53]}  Bd7 {[%clk 0:01:40]} 14. a4 {[%clk 0:02:47]}  Rc8 {[%clk 0:01:17]} 15. Bd2 {[%clk 0:02:25]}  Nc4 {[%clk 0:01:15]} 16. Bxc4 {[%clk 0:02:24]}  Rxc4 {[%clk 0:01:16]} 17. Qb3 {[%clk 0:02:20]}  Qc7 {[%clk 0:01:12]} 18. Reb1 {[%clk 0:02:18]}  b6 {[%clk 0:01:10]} 19. Qa3 {[%clk 0:02:06]}  Bf5 {[%clk 0:00:52]} 20. Rb5 {[%clk 0:02:06]}  Bd7 {[%clk 0:00:45]} 21. Rb4 {[%clk 0:01:56]}  e6 {[%clk 0:00:35]} 22. a5 {[%clk 0:01:54]}  b5 {[%clk 0:00:33]} 23. Ne1 {[%clk 0:01:48]}  Rc8 {[%clk 0:00:31]} 24. Nd3 {[%clk 0:01:39]}  Bf8 {[%clk 0:00:30]} 25. Nc5 {[%clk 0:01:00]}  Bxc5 {[%clk 0:00:27]} 26. dxc5 {[%clk 0:01:01]}  Qxc5 {[%clk 0:00:28]} 27. Be3 {[%clk 0:01:00]}  Qc7 {[%clk 0:00:25]} 28. Bd4 {[%clk 0:00:58]}  Be8 {[%clk 0:00:10]} 29. Qb2 {[%clk 0:00:57]}  a6 {[%clk 0:00:09]} 30. Qd2 {[%clk 0:00:57]}  Qe7 {[%clk 0:00:08]} 31. g3 {[%clk 0:00:53]}  Kg7 {[%clk 0:00:04]} 32. Kg2 {[%clk 0:00:53]}  h5 {[%clk 0:00:03]} 33. h4 {[%clk 0:00:53]}  Bd7 {[%clk 0:00:03]} 34. Rab1 {[%clk 0:00:52]}  Be8 {[%clk 0:00:02]} 35. Qe3 {[%clk 0:00:51]}  Bd7 {[%clk 0:00:02]} 36. Qf3 {[%clk 0:00:49]}  Be8 {[%clk 0:00:00]} 37. Be3 {[%clk 0:00:48]} 1-0

[Event "January 2 Late 2024"]
[Site "https://www.chess.com"]
[Date "2024.01.02"]
[Round "5"]
[White "Pasti, Aron"]
[Black "Travadon, Loic"]
[Result "1-0"]
[Board "132"]
[TimeControl "180+1"]
[WhiteFideId "785857"]
[BlackFideId "26092131"]
[WhiteElo "2522"]
[BlackElo "2331"]
[WhiteTeam "HUN"]
[BlackTeam "FRA"]
[WhiteClock "0:01:20"]
[BlackClock "0:00:37"]

1. e4 {[%clk 0:02:48]}  e5 {[%clk 0:02:58]} 2. Nf3 {[%clk 0:02:48]}  Nc6 {[%clk 0:02:57]} 3. Bb5 {[%clk 0:02:47]}  a6 {[%clk 0:02:56]} 4. Ba4 {[%clk 0:02:48]}  Nf6 {[%clk 0:02:54]} 5. O-O {[%clk 0:02:48]}  b5 {[%clk 0:02:53]} 6. Bb3 {[%clk 0:02:48]}  Nxe4 {[%clk 0:02:53]} 7. d4 {[%clk 0:02:46]}  d5 {[%clk 0:02:53]} 8. dxe5 {[%clk 0:02:47]}  Be6 {[%clk 0:02:53]} 9. Nbd2 {[%clk 0:02:45]}  Be7 {[%clk 0:02:51]} 10. c3 {[%clk 0:02:46]}  O-O {[%clk 0:02:49]} 11. Bc2 {[%clk 0:02:41]}  f5 {[%clk 0:02:39]} 12. exf6 {[%clk 0:02:42]}  Nxf6 {[%clk 0:02:38]} 13. Re1 {[%clk 0:02:42]}  Qd7 {[%clk 0:02:31]} 14. Ng5 {[%clk 0:02:38]}  Bg4 {[%clk 0:02:16]} 15. Ngf3 {[%clk 0:02:22]}  Bc5 {[%clk 0:02:11]} 16. Nb3 {[%clk 0:02:17]}  Bd6 {[%clk 0:02:04]} 17. Qd3 {[%clk 0:02:13]}  Bxf3 {[%clk 0:01:50]} 18. Qxf3 {[%clk 0:02:09]}  Ne5 {[%clk 0:01:51]} 19. Qd1 {[%clk 0:02:06]}  Nfg4 {[%clk 0:01:41]} 20. Qxd5+ {[%clk 0:01:59]}  Kh8 {[%clk 0:01:39]} 21. Qe4 {[%clk 0:01:58]}  g6 {[%clk 0:01:33]} 22. Bf4 {[%clk 0:01:53]}  Rae8 {[%clk 0:01:20]} 23. Qd4 {[%clk 0:01:33]}  Rxf4 {[%clk 0:00:50]} 24. Qxf4 {[%clk 0:01:32]}  Rf8 {[%clk 0:00:50]} 25. Qd4 {[%clk 0:01:22]}  Rxf2 {[%clk 0:00:45]} 26. Rxe5 {[%clk 0:01:22]}  Rxc2 {[%clk 0:00:37]} 27. Re8# {[%clk 0:01:20]} 1-0

[Event "January 2 Late 2024"]
[Site "https://www.chess.com"]
[Date "2024.01.02"]
[Round "5"]
[White "Zampronha, Wladimir Camilo"]
[Black "Weisz, Bryan"]
[Result "0-1"]
[Board "134"]
[TimeControl "180+1"]
[WhiteFideId "2103087"]
[BlackFideId "30934133"]
[WhiteElo "2325"]
[BlackElo "2519"]
[WhiteTeam "BRA"]
[BlackTeam "USA"]
[WhiteClock "0:00:39"]
[BlackClock "0:00:36"]

1. e4 {[%clk 0:03:00]}  e6 {[%clk 0:02:59]} 2. d4 {[%clk 0:03:00]}  Be7 {[%clk 0:02:58]} 3. Nc3 {[%clk 0:02:53]}  d5 {[%clk 0:02:58]} 4. Nf3 {[%clk 0:02:50]}  Nf6 {[%clk 0:02:53]} 5. Bd3 {[%clk 0:02:47]}  O-O {[%clk 0:02:46]} 6. O-O {[%clk 0:02:47]}  c5 {[%clk 0:02:45]} 7. dxc5 {[%clk 0:02:42]}  Bxc5 {[%clk 0:02:43]} 8. exd5 {[%clk 0:02:42]}  Nxd5 {[%clk 0:02:30]} 9. Nxd5 {[%clk 0:02:42]}  Qxd5 {[%clk 0:02:28]} 10. Qe2 {[%clk 0:02:40]}  Nc6 {[%clk 0:02:27]} 11. Be4 {[%clk 0:02:40]}  Qh5 {[%clk 0:02:21]} 12. Re1 {[%clk 0:02:29]}  Bd6 {[%clk 0:02:06]} 13. Bxc6 {[%clk 0:02:23]}  bxc6 {[%clk 0:02:04]} 14. Ne5 {[%clk 0:02:22]}  Qxe2 {[%clk 0:02:01]} 15. Rxe2 {[%clk 0:02:21]}  Ba6 {[%clk 0:02:01]} 16. Re1 {[%clk 0:02:03]}  Bxe5 {[%clk 0:01:51]} 17. Rxe5 {[%clk 0:02:02]}  Rfd8 {[%clk 0:01:52]} 18. Be3 {[%clk 0:02:01]}  Rd5 {[%clk 0:01:48]} 19. Rxd5 {[%clk 0:02:01]}  cxd5 {[%clk 0:01:46]} 20. f4 {[%clk 0:01:55]}  Kf8 {[%clk 0:01:36]} 21. Kf2 {[%clk 0:01:55]}  Ke7 {[%clk 0:01:36]} 22. Bd4 {[%clk 0:01:52]}  f6 {[%clk 0:01:37]} 23. Re1 {[%clk 0:01:52]}  Kd6 {[%clk 0:01:37]} 24. c3 {[%clk 0:01:49]}  Bc8 {[%clk 0:01:31]} 25. b4 {[%clk 0:01:41]}  Bd7 {[%clk 0:01:28]} 26. Bc5+ {[%clk 0:01:37]}  Kc6 {[%clk 0:01:28]} 27. a4 {[%clk 0:01:35]}  a5 {[%clk 0:01:27]} 28. Ra1 {[%clk 0:01:24]}  e5 {[%clk 0:01:27]} 29. Be3 {[%clk 0:01:20]}  axb4 {[%clk 0:01:11]} 30. cxb4 {[%clk 0:01:20]}  d4 {[%clk 0:01:12]} 31. Bd2 {[%clk 0:01:18]}  Kd5 {[%clk 0:01:12]} 32. a5 {[%clk 0:01:13]}  e4 {[%clk 0:01:11]} 33. Rc1 {[%clk 0:01:08]}  e3+ {[%clk 0:01:09]} 34. Bxe3 {[%clk 0:01:08]}  dxe3+ {[%clk 0:01:09]} 35. Kxe3 {[%clk 0:01:08]}  Rc8 {[%clk 0:01:07]} 36. Rd1+ {[%clk 0:01:05]}  Ke6 {[%clk 0:01:05]} 37. f5+ {[%clk 0:01:02]}  Ke7 {[%clk 0:01:04]} 38. g4 {[%clk 0:01:03]}  Rc4 {[%clk 0:01:00]} 39. Rb1 {[%clk 0:01:02]}  Bb5 {[%clk 0:00:56]} 40. h3 {[%clk 0:01:02]}  Rc3+ {[%clk 0:00:55]} 41. Kd4 {[%clk 0:01:02]}  Rc4+ {[%clk 0:00:53]} 42. Kd5 {[%clk 0:01:02]}  h5 {[%clk 0:00:47]} 43. gxh5 {[%clk 0:00:52]}  Rf4 {[%clk 0:00:47]} 44. Kc5 {[%clk 0:00:49]}  Rxf5+ {[%clk 0:00:44]} 45. Kb6 {[%clk 0:00:49]}  Bd3 {[%clk 0:00:41]} 46. b5 {[%clk 0:00:46]}  Bxb1 {[%clk 0:00:40]} 47. a6 {[%clk 0:00:45]}  Bd3 {[%clk 0:00:36]} 48. a7 {[%clk 0:00:44]}  Rxb5+ {[%clk 0:00:36]} 49. Kc6 {[%clk 0:00:39]}  Ra5 {[%clk 0:00:36]} 0-1

[Event "January 2 Late 2024"]
[Site "https://www.chess.com"]
[Date "2024.01.02"]
[Round "5"]
[White "Baches Garcia, Guillermo"]
[Black "Kornyukov, Alexey"]
[Result "1/2-1/2"]
[Board "135"]
[TimeControl "180+1"]
[WhiteFideId "2209764"]
[BlackFideId "4150457"]
[WhiteElo "2518"]
[BlackElo "2316"]
[WhiteTeam "ESP"]
[BlackTeam "RUS"]
[WhiteClock "0:01:10"]
[BlackClock "0:01:01"]

1. d4 {[%clk 0:03:00]}  d5 {[%clk 0:02:59]} 2. Nf3 {[%clk 0:02:59]}  e6 {[%clk 0:02:57]} 3. Bg5 {[%clk 0:02:59]}  Be7 {[%clk 0:02:56]} 4. Bxe7 {[%clk 0:02:59]}  Qxe7 {[%clk 0:02:57]} 5. Nbd2 {[%clk 0:02:59]}  Nf6 {[%clk 0:02:56]} 6. e3 {[%clk 0:02:59]}  O-O {[%clk 0:02:55]} 7. Bd3 {[%clk 0:02:59]}  c5 {[%clk 0:02:56]} 8. c3 {[%clk 0:02:59]}  Nc6 {[%clk 0:02:56]} 9. O-O {[%clk 0:02:58]}  e5 {[%clk 0:02:56]} 10. dxe5 {[%clk 0:02:58]}  Nxe5 {[%clk 0:02:57]} 11. Nxe5 {[%clk 0:02:58]}  Qxe5 {[%clk 0:02:57]} 12. Nf3 {[%clk 0:02:58]}  Qc7 {[%clk 0:02:55]} 13. Qc2 {[%clk 0:02:55]}  Bg4 {[%clk 0:02:49]} 14. Nd2 {[%clk 0:02:50]}  Rad8 {[%clk 0:02:41]} 15. Bf5 {[%clk 0:02:47]}  Rfe8 {[%clk 0:02:31]} 16. h3 {[%clk 0:02:44]}  Bxf5 {[%clk 0:02:31]} 17. Qxf5 {[%clk 0:02:44]}  d4 {[%clk 0:02:26]} 18. cxd4 {[%clk 0:02:40]}  cxd4 {[%clk 0:02:27]} 19. exd4 {[%clk 0:02:37]}  Rxd4 {[%clk 0:02:23]} 20. Nf3 {[%clk 0:02:34]}  Rd5 {[%clk 0:02:20]} 21. Qb1 {[%clk 0:02:24]}  h6 {[%clk 0:02:16]} 22. Rd1 {[%clk 0:02:22]}  Red8 {[%clk 0:02:14]} 23. Rxd5 {[%clk 0:02:18]}  Rxd5 {[%clk 0:02:15]} 24. Qc1 {[%clk 0:02:06]}  Qd7 {[%clk 0:02:05]} 25. Qe3 {[%clk 0:02:02]}  a6 {[%clk 0:02:00]} 26. Re1 {[%clk 0:02:01]}  Rd1 {[%clk 0:01:53]} 27. Rxd1 {[%clk 0:01:54]}  Qxd1+ {[%clk 0:01:54]} 28. Kh2 {[%clk 0:01:54]}  Qd6+ {[%clk 0:01:53]} 29. Kg1 {[%clk 0:01:54]}  Qd5 {[%clk 0:01:46]} 30. a3 {[%clk 0:01:49]}  Ne4 {[%clk 0:01:45]} 31. Qd4 {[%clk 0:01:44]}  Qc6 {[%clk 0:01:27]} 32. Qd1 {[%clk 0:01:28]}  f5 {[%clk 0:01:23]} 33. g3 {[%clk 0:01:23]}  Kh7 {[%clk 0:01:13]} 34. h4 {[%clk 0:01:17]}  Qb6 {[%clk 0:01:01]} 35. Qd4 {[%clk 0:01:10]} 1/2-1/2

[Event "January 2 Late 2024"]
[Site "https://www.chess.com"]
[Date "2024.01.02"]
[Round "5"]
[White "Horak, Martin"]
[Black "uzkuzk"]
[Result "0-1"]
[Board "136"]
[TimeControl "180+1"]
[WhiteFideId "367095"]
[WhiteElo "2518"]
[BlackElo "2271"]
[WhiteTeam "CZE"]
[WhiteClock "0:00:00"]
[BlackClock "0:00:18"]

1. e4 {[%clk 0:03:00]}  e5 {[%clk 0:02:59]} 2. Nc3 {[%clk 0:02:59]}  f5 {[%clk 0:02:59]} 3. Bc4 {[%clk 0:02:59]}  Nf6 {[%clk 0:02:58]} 4. d3 {[%clk 0:02:53]}  Bc5 {[%clk 0:02:50]} 5. Nf3 {[%clk 0:02:45]}  d6 {[%clk 0:02:47]} 6. Qe2 {[%clk 0:02:30]}  Nc6 {[%clk 0:02:45]} 7. Be3 {[%clk 0:02:30]}  Bb6 {[%clk 0:02:39]} 8. O-O-O {[%clk 0:02:11]}  f4 {[%clk 0:02:37]} 9. Bxb6 {[%clk 0:02:09]}  axb6 {[%clk 0:02:37]} 10. d4 {[%clk 0:01:54]}  Bg4 {[%clk 0:02:34]} 11. dxe5 {[%clk 0:01:54]}  Nxe5 {[%clk 0:02:32]} 12. Bb3 {[%clk 0:01:45]}  Qe7 {[%clk 0:02:16]} 13. Qb5+ {[%clk 0:01:21]}  Bd7 {[%clk 0:02:08]} 14. Qb4 {[%clk 0:01:20]}  Ra6 {[%clk 0:01:26]} 15. Nxe5 {[%clk 0:01:06]}  Qxe5 {[%clk 0:01:24]} 16. f3 {[%clk 0:00:54]}  b5 {[%clk 0:01:17]} 17. Nd5 {[%clk 0:00:35]}  c5 {[%clk 0:01:04]} 18. Qd2 {[%clk 0:00:32]}  c4 {[%clk 0:01:00]} 19. Nc7+ {[%clk 0:00:31]}  Ke7 {[%clk 0:01:00]} 20. Nxa6 {[%clk 0:00:29]}  bxa6 {[%clk 0:01:00]} 21. g3 {[%clk 0:00:22]}  cxb3 {[%clk 0:00:58]} 22. axb3 {[%clk 0:00:21]}  Nh5 {[%clk 0:00:48]} 23. g4 {[%clk 0:00:20]}  Nf6 {[%clk 0:00:48]} 24. Qa5 {[%clk 0:00:19]}  Rc8 {[%clk 0:00:40]} 25. Rd2 {[%clk 0:00:16]}  Be6 {[%clk 0:00:37]} 26. Qxa6 {[%clk 0:00:15]}  Rc7 {[%clk 0:00:28]} 27. Rhd1 {[%clk 0:00:14]}  Qc5 {[%clk 0:00:26]} 28. g5 {[%clk 0:00:03]}  Ne8 {[%clk 0:00:19]} 29. Kb1 {[%clk 0:00:00]}  Ra7 {[%clk 0:00:18]} 0-1

[Event "January 2 Late 2024"]
[Site "https://www.chess.com"]
[Date "2024.01.02"]
[Round "5"]
[White "Lopez Del Alamo, Antonio"]
[Black "Osmak, Yuliia"]
[Result "1-0"]
[Board "137"]
[TimeControl "180+1"]
[WhiteFideId "2227339"]
[BlackFideId "14101602"]
[WhiteElo "2284"]
[BlackElo "2518"]
[WhiteTeam "ESP"]
[BlackTeam "UKR"]
[WhiteClock "0:00:28"]
[BlackClock "0:00:00"]

1. e4 {[%clk 0:02:58]}  c5 {[%clk 0:02:53]} 2. Nf3 {[%clk 0:02:58]}  Nc6 {[%clk 0:02:53]} 3. b4 {[%clk 0:02:58]}  cxb4 {[%clk 0:02:51]} 4. d4 {[%clk 0:02:58]}  d5 {[%clk 0:02:48]} 5. exd5 {[%clk 0:02:58]}  Qxd5 {[%clk 0:02:49]} 6. c4 {[%clk 0:02:58]}  bxc3 {[%clk 0:02:47]} 7. Nxc3 {[%clk 0:02:58]}  Qa5 {[%clk 0:02:47]} 8. Rb1 {[%clk 0:02:58]}  Qxc3+ {[%clk 0:02:41]} 9. Bd2 {[%clk 0:02:58]}  Qa3 {[%clk 0:02:38]} 10. d5 {[%clk 0:02:58]}  e6 {[%clk 0:02:28]} 11. dxc6 {[%clk 0:02:50]}  bxc6 {[%clk 0:02:29]} 12. Qc2 {[%clk 0:02:49]}  Bd7 {[%clk 0:02:25]} 13. Bd3 {[%clk 0:02:37]}  Nf6 {[%clk 0:02:23]} 14. Rb3 {[%clk 0:02:21]}  Qa4 {[%clk 0:02:14]} 15. Rb8+ {[%clk 0:02:16]}  Rxb8 {[%clk 0:02:12]} 16. Qxa4 {[%clk 0:02:16]}  Bc5 {[%clk 0:02:07]} 17. O-O {[%clk 0:02:11]}  O-O {[%clk 0:02:07]} 18. Ne5 {[%clk 0:02:02]}  Rfd8 {[%clk 0:02:06]} 19. Qc2 {[%clk 0:01:45]}  Bd4 {[%clk 0:01:55]} 20. Bc3 {[%clk 0:01:21]}  c5 {[%clk 0:01:42]} 21. Bxd4 {[%clk 0:01:09]}  cxd4 {[%clk 0:01:43]} 22. Qc7 {[%clk 0:00:51]}  Rbc8 {[%clk 0:01:34]} 23. Qxa7 {[%clk 0:00:51]}  Be8 {[%clk 0:01:34]} 24. h3 {[%clk 0:00:48]}  Rd5 {[%clk 0:01:30]} 25. Re1 {[%clk 0:00:46]}  g6 {[%clk 0:01:22]} 26. a4 {[%clk 0:00:46]}  Rcc5 {[%clk 0:01:20]} 27. f4 {[%clk 0:00:42]}  Ra5 {[%clk 0:01:19]} 28. Qe7 {[%clk 0:00:41]}  Kg7 {[%clk 0:01:14]} 29. Bb5 {[%clk 0:00:41]}  Bxb5 {[%clk 0:00:05]} 30. Qxf7+ {[%clk 0:00:33]}  Kh6 {[%clk 0:00:05]} 31. Qxf6 {[%clk 0:00:29]}  Bxa4 {[%clk 0:00:04]} 32. Nf7+ {[%clk 0:00:29]}  Kh5 {[%clk 0:00:03]} 33. Re5+ {[%clk 0:00:28]}  Rxe5 {[%clk 0:00:00]} 34. fxe5 {[%clk 0:00:28]} 1-0

[Event "January 2 Late 2024"]
[Site "https://www.chess.com"]
[Date "2024.01.02"]
[Round "5"]
[White "xakevicius91"]
[Black "Slavin, Alexey"]
[Result "0-1"]
[Board "138"]
[TimeControl "180+1"]
[BlackFideId "24104388"]
[WhiteElo "2516"]
[BlackElo "2262"]
[BlackTeam "RUS"]
[WhiteClock "0:01:51"]
[BlackClock "0:02:11"]

1. e4 {[%clk 0:03:00]}  Nc6 {[%clk 0:02:59]} 2. Nf3 {[%clk 0:02:55]}  d6 {[%clk 0:02:59]} 3. Nc3 {[%clk 0:02:52]}  Nf6 {[%clk 0:02:59]} 4. d4 {[%clk 0:02:51]}  Bg4 {[%clk 0:02:59]} 5. Be2 {[%clk 0:02:48]}  e5 {[%clk 0:02:59]} 6. Be3 {[%clk 0:02:48]}  Be7 {[%clk 0:02:57]} 7. Qd2 {[%clk 0:02:45]}  O-O {[%clk 0:02:57]} 8. O-O-O {[%clk 0:02:44]}  a6 {[%clk 0:02:56]} 9. h3 {[%clk 0:02:43]}  Bh5 {[%clk 0:02:56]} 10. d5 {[%clk 0:02:38]}  Nb8 {[%clk 0:02:54]} 11. g4 {[%clk 0:02:36]}  Bg6 {[%clk 0:02:54]} 12. Bd3 {[%clk 0:02:37]}  b5 {[%clk 0:02:42]} 13. a3 {[%clk 0:02:34]}  c5 {[%clk 0:02:42]} 14. dxc6 {[%clk 0:02:29]}  Nxc6 {[%clk 0:02:42]} 15. h4 {[%clk 0:02:29]}  h5 {[%clk 0:02:39]} 16. gxh5 {[%clk 0:02:26]}  Bxh5 {[%clk 0:02:35]} 17. Be2 {[%clk 0:02:25]}  b4 {[%clk 0:02:31]} 18. axb4 {[%clk 0:02:25]}  Nxb4 {[%clk 0:02:31]} 19. Ng5 {[%clk 0:02:14]}  Qa5 {[%clk 0:02:16]} 20. Bxh5 {[%clk 0:01:51]}  Qa1+ {[%clk 0:02:10]} 21. Nb1 {[%clk 0:01:51]}  Na2# {[%clk 0:02:11]} 0-1

[Event "January 2 Late 2024"]
[Site "https://www.chess.com"]
[Date "2024.01.02"]
[Round "5"]
[White "Makaraci, Tunahan"]
[Black "Vifleemskaia, Svetlana"]
[Result "1-0"]
[Board "139"]
[TimeControl "180+1"]
[WhiteFideId "6356559"]
[BlackFideId "4129490"]
[WhiteElo "2515"]
[BlackElo "2244"]
[WhiteTeam "TUR"]
[BlackTeam "RUS"]
[WhiteClock "0:00:30"]
[BlackClock "0:00:00"]

1. e4 {[%clk 0:03:00]}  e5 {[%clk 0:02:55]} 2. Nc3 {[%clk 0:03:00]}  Nf6 {[%clk 0:02:53]} 3. f4 {[%clk 0:03:00]}  d5 {[%clk 0:02:53]} 4. fxe5 {[%clk 0:03:01]}  Nxe4 {[%clk 0:02:53]} 5. Qf3 {[%clk 0:03:01]}  Nxc3 {[%clk 0:02:52]} 6. dxc3 {[%clk 0:03:02]}  Be7 {[%clk 0:02:52]} 7. Bf4 {[%clk 0:02:59]}  Be6 {[%clk 0:02:52]} 8. O-O-O {[%clk 0:02:59]}  c6 {[%clk 0:02:53]} 9. Qg3 {[%clk 0:02:59]}  g5 {[%clk 0:02:49]} 10. Be3 {[%clk 0:02:59]}  Qa5 {[%clk 0:02:39]} 11. a3 {[%clk 0:02:56]}  Nd7 {[%clk 0:02:34]} 12. Nf3 {[%clk 0:02:55]}  h6 {[%clk 0:02:30]} 13. Nd4 {[%clk 0:02:55]}  O-O-O {[%clk 0:02:10]} 14. Nxe6 {[%clk 0:02:44]}  fxe6 {[%clk 0:02:11]} 15. Qh3 {[%clk 0:02:43]}  Nf8 {[%clk 0:02:03]} 16. Bd3 {[%clk 0:02:37]}  c5 {[%clk 0:01:58]} 17. Rhf1 {[%clk 0:02:31]}  c4 {[%clk 0:01:42]} 18. Be2 {[%clk 0:02:17]}  Bxa3 {[%clk 0:01:21]} 19. bxa3 {[%clk 0:02:04]}  Qxa3+ {[%clk 0:01:20]} 20. Kd2 {[%clk 0:02:01]}  d4 {[%clk 0:01:21]} 21. Bxd4 {[%clk 0:01:53]}  Kb8 {[%clk 0:00:58]} 22. Ra1 {[%clk 0:01:48]}  Qc5 {[%clk 0:00:48]} 23. Ke1 {[%clk 0:01:18]}  Rxd4 {[%clk 0:00:35]} 24. cxd4 {[%clk 0:01:17]}  Qxd4 {[%clk 0:00:36]} 25. Rd1 {[%clk 0:01:11]}  Qxe5 {[%clk 0:00:33]} 26. Rd8+ {[%clk 0:00:57]}  Kc7 {[%clk 0:00:33]} 27. Rfxf8 {[%clk 0:00:57]}  Rxf8 {[%clk 0:00:19]} 28. Rxf8 {[%clk 0:00:52]}  Qa5+ {[%clk 0:00:12]} 29. c3 {[%clk 0:00:36]}  Qc5 {[%clk 0:00:07]} 30. Qg3+ {[%clk 0:00:33]}  Kb6 {[%clk 0:00:00]} 31. Qf2 {[%clk 0:00:30]} 1-0